Cogmind - Beta 17 @@@ ROGUE MODE // 2026.06.26 @ 18:10:48 Player: morimori Result: Destroyed by RG-ER6(R) with Subdweller Shrapnel Launcher Performance ------------- Evolutions (0) 0 Regions Visited (2) 400 Robots Destroyed (22) 110 Value Destroyed (437) 437 Prototype IDs (4) 80 Alien Tech Used (0) 0 Bonus (5000) 5000 TOTAL SCORE: 6027 Bonus ------- Prayed to X0-1V1 5000 Cogmind --------- Core Integrity 0/150 Matter 210/300 Energy 250/250 System Corruption 0% Temperature Cool (0) Movement Rolling (115) Ox1 Location -10/Subcaves Parts ------- > --- POWER (1) -------- Ion Engine > --- PROPULSION (2) --- Light Treads Compact Wheel > --- UTILITY (2) ------ Large Storage Unit X0-1V1's Piety Tracker > --- WEAPON (2) ------- Mini Grenade Launcher Mini Grenade Launcher > --- INVENTORY (15) --- Ion Engine Light Treads Wheel Heat Sink Improved Heat Sink High-capacity Battery (250) Seismic Detector Hardened Light Armor Plating Hardened Light Armor Plating Hacking Suite Improved Medium Laser Improved Medium Laser Improved Medium Laser Improved Medium Laser Light Assault Rifle Peak State ------------ > --- POWER ------------ Ion Engine > --- PROPULSION ------- Light Treads Compact Wheel > --- UTILITY ---------- Large Storage Unit X0-1V1's Piety Tracker > --- WEAPON ----------- Improved Medium Laser Improved Medium Laser > --- INVENTORY -------- Ion Engine Light Treads Light Treads Wheel Heat Sink High-capacity Battery Seismic Detector Hardened Light Armor Plating Hardened Light Armor Plating Hacking Suite Improved Medium Laser Improved Medium Laser Light Assault Rifle Mini Grenade Launcher Mini Grenade Launcher [Rating: 25] Favorites ----------- Power Ion Engine Engine Ion Engine Propulsion Light Treads Treads Light Treads Wheel Compact Wheel Utility Small Storage Unit Device Improved Heat Sink Storage Small Storage Unit Protection Light Armor Plating Weapon Improved Medium Laser Energy Gun Improved Medium Laser Ballistic Gun Light Assault Rifle Launcher Mini Grenade Launcher Build | -11 -10 -10 ------- Run | Yrd Mat Sub Slots Evolved . | . . . Power . | . . . Propulsion . | . . . Utility . | . . . Weapon . | . . . Parts Attached 24 | 8 15 1 Power 3 | 1 2 . Engine 3 | 1 2 . Core . | . . . Reactor . | . . . Propulsion 7 | 3 4 . Treads 4 | 2 2 . Leg . | . . . Wheel 3 | 1 2 . Hover . | . . . Flight . | . . . Utility 6 | 2 4 . Device 3 | 1 2 . Storage 2 | 1 1 . Processor . | . . . Hackware . | . . . Protection 1 | . 1 . Artifact . | . . . Weapon 8 | 2 5 1 Energy Gun 2 | . 2 . Energy Cannon . | . . . Ballistic Gun 4 | 2 2 . Ballistic Cannon . | . . . Launcher 2 | . 1 1 Special Weapon . | . . . Impact Weapon . | . . . Slashing Weapon . | . . . Piercing Weapon . | . . . Special Melee Weapon . | . . . Unidentified Prototypes 2 | . 2 . Parts Lost 1 | . 1 . Power . | . . . Propulsion . | . . . Utility . | . . . Weapon 1 | . 1 . Highest Loss Streak 1 | . 1 . To Critical Strikes . | . . . Average Backups 10 | 2 10 15 Power 1 | . 1 1 Propulsion 3 | 1 4 2 Utility 2 | . 3 7 Weapon 2 | . 2 5 Tool/Special . | . . . Unused Backups 27 | . 17 10 Power 3 | . 2 1 Propulsion 8 | . 7 1 Utility 6 | . 1 5 Weapon 10 | . 7 3 Tool/Special . | . . . Average Slot Usage (%) 99 | . 99 100 Engine 14 | . 14 14 Treads 14 | . 14 14 Wheel 14 | . 14 14 Device 13 | . 13 14 Storage 14 | . 14 14 Energy Gun 18 | . 17 25 Ballistic Gun 9 | . 10 . Peak Build Rating 25 | 7 25 25 Average Rating 11 | 4 12 24 On Entrance 10 | . 7 25 Avg Prop Armor Cover (%) 13 | 15 13 14 Naked Turns . | . . . Heaviest Build 32 | 14 32 32 Greatest Support 40 | 40 16 16 Greatest Overweight (x) 3 | . 3 1 Average Overweight (x) . | . . 1 Largest Inventory Capacity 15 | 8 15 15 Average Capacity 10 | 6 11 15 Most Carried 15 | 6 15 15 Average Carried 10 | 2 11 15 Final Capacity 15 | 8 15 15 Final Carried 15 | 6 15 15 Class Distribution -------------------- 83% | Mutant 16% | Scavenger-Mutant Dominant Class ---------------- Mutant | -10/Materials Mutant | -10/Subcaves Resources | -11 -10 -10 ----------- Run | Yrd Mat Sub Matter Collected 588 | 328 260 . Remotely . | . . . Salvage Created 711 | 130 581 . Parts 55 | 11 44 . Haulers Intercepted 2 | . 2 . Recyclers Shooed 1 | . 1 . Parts Field Recycled . | . . . Retrieved Matter . | . . . Parts Self-Destructed . | . . . Prevented . | . . . Parts Restored . | . . . Kills | -11 -10 -10 ------- Run | Yrd Mat Sub Combat Hostiles Destroyed 11 | . 11 . Guns 11 | . 11 . Classes Destroyed 8 | 2 6 . Worker 1 | . 1 . Tunneler 3 | 3 . . Hauler 2 | . 2 . Recycler 1 | 1 . . Operator 1 | . 1 . Watcher 3 | . 3 . Swarmer 3 | . 3 . Grunt 8 | . 8 . Best Kill Streak 3 | 3 3 . Combat Bots Only 3 | . 3 . Max Kills in Single Turn 1 | 1 1 . Gunslinging . | . . . Exploded . | . . . Melee . | . . . Uniques/NPCs Destroyed . | . . . Combat | -11 -10 -10 -------- Run | Yrd Mat Sub Hostile Shots Fired 73 | . 68 5 Missed 12 | . 11 1 Hits 61 | . 57 4 Projectile 61 | . 57 4 AOE 5 | . . 5 Critical Strikes 1 | . 1 . Damage Taken 917 | . 685 232 Core 267 | . 179 88 Absorbed by Shields . | . . . Core Remaining (%) 100 | 100 . . Volleys Fired 74 | 12 61 1 Largest 2 | 2 2 2 Hottest 112 | 40 112 60 Shots Fired 147 | 24 121 2 Gun 144 | 24 120 . Cannon . | . . . Launcher 3 | . 1 2 Special . | . . . Kinetic 104 | 24 80 . Thermal 40 | . 40 . Explosive 3 | . 1 2 Electromagnetic . | . . . Robot Hit Streak 11 | 4 11 1 Robot Miss Streak 3 | 3 3 1 Penetration Max . | . . . Secondary Targets 2 | . 2 . Max Gunslinging Chain 1 | . 1 . Shots Hit Robots 93 | 11 81 1 Core Hits 37 | 5 32 . Critical Kills . | . . . Critical Parts Destroyed . | . . . Critical Strikes 2 | . 2 . Burn 2 | . 2 . Melee Attacks . | . . . Impact . | . . . Slashing . | . . . Piercing . | . . . Sneak Attacks . | . . . Combat Hostiles . | . . . Follow-up Attacks . | . . . Damage Inflicted 1244 | 119 947 178 Guns 1066 | 119 947 . Cannons . | . . . Explosions 178 | . . 178 Melee . | . . . Ramming . | . . . Kinetic 657 | 119 538 . Thermal 409 | . 409 . Explosive 178 | . . 178 Electromagnetic . | . . . Impact . | . . . Slashing . | . . . Piercing . | . . . Highest Corruption . | . . . Average Corruption . | . . . Corruption Purged . | . . . Corruption Blocked . | . . . Overload Shots . | . . . Overflow Damage . | . . . Projectiles . | . . . Explosions . | . . . Melee . | . . . Knockbacks . | . . . Impact . | . . . Kinetic . | . . . Secondary . | . . . Self-Inflicted Damage . | . . . Shots . | . . . Rammed . | . . . Targets Rammed . | . . . Kicked . | . . . Crushed . | . . . Highest Temperature 104 | . 104 . Average Temperature 27 | . 27 . Received Heat Transfer 339 | . 339 . Siege Activations . | . . . Martial Activations . | . . . Shielding Activations . | . . . Robots Disrupted . | . . . Combat Hostiles . | . . . Robots Corrupted . | . . . Combat Hostiles . | . . . Parts Fried . | . . . Impact Corruptions . | . . . Robots Melted . | . . . Combat Hostiles . | . . . Parts Melted 4 | . 4 . Heat Transferred 1036 | . 1036 . Parts Sabotaged . | . . . Parts Stolen . | . . . Parts Stripped . | . . . Power Chain Reactions . | . . . Alert | -11 -10 -10 ------- Run | Yrd Mat Sub Maximum Alert Level . | . . . Low Security (%) 100 | 100 100 . Level 1 . | . . . Level 2 . | . . . Level 3 . | . . . Level 4 . | . . . Level 5 . | . . . High Security . | . . . Max Security . | . . . Peak Influence 94 | 5 94 . Initial . | . . . Average 33 | 1 37 . Influence Increases 394 | 20 374 . Destroy 0b10 Robot/C 220 | . 220 . Destroy 0b10 Robot/NC 55 | 20 35 . Destroy Leader 50 | . 50 . Successful Hack 16 | . 16 . Destroy Structure 8 | . 8 . Lose Combat Pursuer 45 | . 45 . Influence Decreases 394 | 20 374 . Time Decay 384 | 20 364 . Lost Part 10 | . 10 . Squads Dispatched 1 | . 1 . Investigation . | . . . Extermination . | . . . Reinforcement 1 | . 1 . Assault . | . . . Garrison . | . . . Intercept . | . . . Searches Triggered . | . . . Construction Impeded . | . . . Haulers Reinforced . | . . . Active Scanning Responses . | . . . Cargo Convoy Interrupts . | . . . Stealth | -11 -10 -10 --------- Run | Yrd Mat Sub Distress Signals 2 | . 2 . Communications Jammed . | . . . Distress Signals . | . . . Times Spotted 26 | . 24 2 Peak Tracking Total 4 | . 4 2 Tactical Retreats 3 | . 3 . Traps | -11 -10 -10 ------- Run | Yrd Mat Sub Traps Triggered . | . . . Indirectly . | . . . Trap Hack Attempts . | . . . Triggered . | . . . Disarmed . | . . . Reprogrammed . | . . . Reused . | . . . Traps Extracted . | . . . Installed . | . . . Triggered . | . . . Machines | -11 -10 -10 ---------- Run | Yrd Mat Sub Machines Disabled . | . . . Max in Single Turn . | . . . Machines Repaired . | . . . Machines Dismantled . | . . . Machines Sabotaged . | . . . Overloaded Fab Kills . | . . . Hacking | -11 -10 -10 --------- Run | Yrd Mat Sub Machines Accessed 8 | . 8 . Terminals 7 | . 7 . Fabricators . | . . . Repair Stations . | . . . Recycling Units 1 | . 1 . Scanalyzers . | . . . Garrison Access . | . . . Total Hacks 18 | . 18 . Successful 9 | . 9 . Failed 8 | . 8 . Catastrophic 1 | . 1 . Database Lockouts 1 | . 1 . Manual 15 | . 15 . Terminals 17 | . 17 . Fabricators . | . . . Repair Stations . | . . . Recycling Units 1 | . 1 . Scanalyzers . | . . . Garrison Access . | . . . Terminal Hacks 5 | . 5 . Part Schematic 1 | . 1 . Prototype ID Bank 1 | . 1 . Terminal Index 1 | . 1 . Locate Traps 1 | . 1 . Zone Layout 1 | . 1 . Fabricator Hacks . | . . . Repair Station Hacks . | . . . Recycling Unit Hacks 1 | . 1 . Retrieve Components 1 | . 1 . Scanalyzer . | . . . Garrison Access Hacks . | . . . Unauthorized Hacks 3 | . 3 . Terminals 3 | . 3 . Botnet 2 | . 2 . Operators 1 | . 1 . Fabricators . | . . . Repair Stations . | . . . Recycling Units . | . . . Scanalyzers . | . . . Garrison Access . | . . . Data Cores Recovered . | . . . Used . | . . . Hacking Detections 6 | . 6 . Full Trace Events . | . . . Feedback Events . | . . . Feedback Blocked . | . . . Robot Schematics Acquired . | . . . Robots Built . | . . . Authchips . | . . . Time . | . . . Total Robot Build Rating . | . . . Part Schematics Acquired 1 | . 1 . Parts Built . | . . . Authchips . | . . . Time . | . . . Total Part Build Rating . | . . . Part Studies Acquired . | . . . Parts Repaired . | . . . Time . | . . . Parts Recycled . | . . . Recycled Matter . | . . . Retrieved Matter . | . . . Retrieved Components 2 | . 2 . Parts Scanalyzed . | . . . Part Schematics Acquired . | . . . Parts Damaged . | . . . Bothacking | -11 -10 -10 ------------ Run | Yrd Mat Sub Used RIF Installer . | . . . Robots Hacked . | . . . Non-combat . | . . . Combat . | . . . Robot Hacks Applied . | . . . Relay Couplers Released . | . . . Fabnet Peak Effective % . | . . . Robots Rewired . | . . . Allies Hacked . | . . . Hacks Repelled . | . . . Allies | -11 -10 -10 -------- Run | Yrd Mat Sub Total Allies . | . . . Largest Group . | . . . Highest-Rated Group . | . . . Highest-Rated Ally . | . . . Total Orders . | . . . Ally Attacks . | . . . Total Damage . | . . . Kills . | . . . Allies Corrupted . | . . . Allies Melted . | . . . X0-1V1 Amusement Gains 15 | . 15 . Good Acts 1 | . . 1 Intel | -11 -10 -10 ------- Run | Yrd Mat Sub Active Infowar (turns) 469 | 23 446 . Seismic 469 | 23 446 . Robot Analysis Total . | . . . Derelict Logs Recovered . | . . . Drone Launches . | . . . Drone Recoveries . | . . . Exploration | -11 -10 -10 ------------- Run | Yrd Mat Sub Turns Passed 1385 | 151 1193 41 Spaces Moved 906 | 103 776 27 Core 19 | 19 . . Treads 4 | 4 . . Legs . | . . . Wheels 883 | 80 776 27 Hover . | . . . Flight . | . . . Fastest Speed 50 | 50 95 115 Average Speed 107 | 93 109 115 Slowest Speed 160 | 160 125 115 Overloaded Moves . | . . . Propulsion Burnouts . | . . . Robots Hopped . | . . . Potential Cave-ins . | . . . Cave-ins Triggered . | . . . Exploration Rate (%) 33 | 4 93 4 Regions Visited 2 Branch Regions 1 Pre-discovered Areas . | . . . Known Exits Taken . | . . . Unknown Exits Taken 2 | 1 1 . Scrap Searched . | . . . Spaces Dug 8 | . 8 . Terrain Destroyed 17 | . 8 9 Melee . | . . . Projectile . | . . . AOE 17 | . 8 9 Terrain Rammed . | . . . Walls Destroyed . | . . . Machines Disabled . | . . . Actions | -11 -10 -10 --------- Run | Yrd Mat Sub Total 1198 | 132 1032 34 Wait 125 | 4 117 4 Move 904 | 102 775 27 Hop . | . . . Pick Up 37 | 6 31 . Fast Attach 7 | 7 . . Attach 1 | . 1 . Detach . | . . . Swap 21 | 1 18 2 Drop 29 | . 29 . Fire 74 | 12 61 1 Melee . | . . . Ram . | . . . Kick . | . . . Crush . | . . . Escape Stasis . | . . . Rewire . | . . . Trap . | . . . Miscellaneous . | . . . Route ------- -11/Scrapyard -10/Materials (discovered 5 exits: [*Mat x3] / [*Min] / [*Sub]) -10/Subcaves History --------- Turn | Location | Event 31 | -11/Scrapyard | Discovered new exit (range 15) 152 | -11/Scrapyard | Entered Materials 272 | -10/Materials | Discovered new exit (range 15) 319 | -10/Materials | Build established: Mutant 395 | -10/Materials | Discovered new exit (range 14) 738 | -10/Materials | Discovered new exit (range 16) 765 | -10/Materials | Core integrity fell below 50% 1092 | -10/Materials | Central database locked down 1258 | -10/Materials | Discovered new exit (range 11) 1260 | -10/Materials | Discovered new exit (range 13) 1311 | -10/Materials | Prayed at D.C.S.S. Altar Unit 1345 | -10/Materials | Entered Subcaves 1346 | -10/Subcaves | Approached by a straggling Scientist 1360 | -10/Subcaves | TH resistance permanently improved by X0-1V1 (+10%; -100 max core) 1374 | -10/Subcaves | Ambushed by Subdwellers from Twisted Machinery 1383 | -10/Subcaves | Core integrity fell below 20% 1386 | -10/Subcaves | Destroyed by RG-ER6(R) with Subdweller Shrapnel Launcher Last Messages --------------- 01324_ Acquired Prototype Device. 01324_ Identified X0-1V1's Piety Tracker. 01326_ Dropped Heat Sink. 01326_ Acquired Imp. Heat Sink. 01326_ Dropped Lgt. Treads. 01327_ Acquired Lgt. Treads. 01331_ Dropped Lgt. Treads. 01332_ Acquired Heat Sink. LOCATION=UNKNOWN AMBIENT_HEAT=-10 GOAL=ESCAPE 01346_ EY-1N2(c): "Thank the algorithms! I was beginning to lose hope I'd never make it past all the Subs lurking out here." 01349_ EY-1N2(c): "Hey, let me tag along and I can get us both out of this nasty situation. At least I think I can... The group I got separated from was talking about a shortcut back to the UFD." 01360_ X0-1V1: "Any self-respecting god will have their pound of flesh." (permanent -100 core integrity, +10% TH resistance) 01374_ RG-ER6(R) emerges from the Twisted Machinery. 01386_ X0-1V1 cackles wildly! Map ----- +----------------------------------------------------+ | ????????????????????????????????????????????????? | | ????????????????????????????????????????????????? | | ????????????????????????????????????????????????? | | ????????????????????????????????????????????????? | | ????????????????????????????????????????????????? | | ????????????????????????????????????????????????? | | ????????????????????????????????????????????????? | | ????????????????????????????????????????????????? | | ????????????????????????????????????????????????? | | ???????????????????????????""" ?????????????????? | | ??????????????????????????? #???????????????? | | ??????????????????????????? ##??????????????? | | ??????????????????????????? #??????????????? | | ??????????????????????????? ##?????????????? | | ??????????????????????????# #?????????????? | | ????????????????????????## R #?????????????? | | ????????????????????????# R #?????????????? | | ????????????????????????# #?????????????? | | ???????????????????????## #?????????????? | | ??????????????????????## ??????????????? | | ????????????????????### #???????????????? | | ????????????????????# #????????????????? | | ???????????????????## #?????????????????? | | ???????????????????# #?????????????????? | | ???????????????????## #?????????????????? | | ????????????????????# @ c;#?????????????????? | | ???????????????????# #?????????????????? | | ???????????????????## #????????????????? | | ???????????????????## ###???????????????? | | ???????????????????# #???????????????? | | ???????????????????# ##???????????????? | | ???????????????????# ###??????????????? | | ???????????????????# ;; #??????????????? | | ???????????????????## ##; #??????????????? | | ????????????????????# # #??????????????? | | ????????????????????# ##??????????????? | | ????????????????????## ## #???????????????? | | ?????????????????????### ?# ##??????????????? | | ???????????????????????# ?## #??????????????? | | ???????????????????????## ## ##??????????????? | | ???????????????????????# #???????????????? | | ???????????????????????# #???????????????? | | ???????????????????????# # ###???????????????? | | ???????????????????????#?# ###?????????????????? | | ????????????????????????? #???????????????????? | | ???????????????????????? #???????????????????? | | ??????????????????????? #???????????????????? | | ??????????????????????## ##???????????????????? | | ???????????????????????####?????????????????????? | | ????????????????????????????????????????????????? | +----------------------------------------------------+ Best States ------------- Heat Dissipation 39 Energy Generation 10 Energy Capacity 250 Matter Stores 300 Matter Capacity 300 Sight Range 16 Terrain Scan Density 10 Armor Coverage 150 Resistance: TH 10 Evasion (%) 50 Recoil Reduction 2 Item Schematics ----------------- Hcp. Storage Unit | -10/Materials | Hacked Robot Schematics ------------------ None Fabricated ------------ Nothing Repaired ---------- Nothing Studied --------- None Alien Tech Used ----------------- None Achievements -------------- Chaos Is Inevitable Challenges ------------ None Game ------ Seed DisruptorExoskeletonDrive Manual? 0 Play Time 00:19:11 Cumulative 564.1 hours Start 2026.06.25 @ 20:04:02 End 2026.06.26 @ 18:10:48 Sessions 3 Manual Loads 0 Difficulty Rogue Special Mode None Game No. 257 Rogue 257 Adventurer 0 Explorer 0 Win Type - Total 10 Types 8/0/1/0/0/0/1/0/0/0 Lore% 74 Gallery% 71 Achievement% 52 Wizard Run 0 Options --------- Layout 0 ASCII 0 Keyboard 1 Movement Vi Keybinds 0 Fullscreen 2 Font 18/SmallcapsGlow Map View 76x50 Zoom Use 0% Tactical HUD 1 Map Filters NONE Filters NONE Steam 1 RUN: aaece368-0ffb-44cf-b3fb-90091fb81e8e